bitfinex-derivatives/quotes_ETHF0:USTF0_20230403
["timestamp","ask_amount","ask_price","bid_price","bid_amount"]
[1680546494984,3.2078,1811.6,1811.0,3.2078]
[1680546495275,3.2078,1811.6,1810.9,4.413]
[1680546495482,3.2078,1811.4,1810.9,4.413]
[1680546495685,3.2078,1811.4,1810.9,7.6208]
[1680546496084,3.2078,1811.4,1810.9,4.413]
[1680546496291,3.2078,1811.4,1810.7,4.383]
[1680546496495,3.2078,1811.4,1810.8,16.45757769]
[1680546496786,3.2078,1811.2,1810.6,4.2078]
[1680546496989,3.2078,1811.2,1810.7,13.25073612]
[1680546497184,3.2078,1811.2,1810.6,3.2078]
[1680546497997,3.2078,1811.2,1810.6,8.7398]
[1680546498187,5.37,1811.6,1810.8,3.2078]
[1680546498188,3.2078,1811.6,1810.8,3.2078]
[1680546498589,4.2078,1811.6,1810.7,10.904]
[1680546498885,4.2078,1811.6,1810.8,4.2078]
[1680546499094,5.1465,1811.7,1811.0,5.532]
[1680546499280,5.1465,1811.7,1811.6,3.2078]
[1680546499481,5.0631,1812.0,1811.6,8.7398]
[1680546499789,5.0631,1812.0,1811.6,7.6208]
[1680546499979,5.0631,1812.0,1811.9,3.2078]
[1680546500778,3.2078,1812.6,1811.9,8.7398]
[1680546500984,3.2078,1812.6,1812.0,4.383]
[1680546501187,1.0,1812.5,1811.9,3.2078]
[1680546501881,4.2078,1812.5,1811.8,7.6208]
[1680546502082,8.6208,1812.5,1811.6,3.2078]
[1680546502385,3.2078,1812.3,1811.6,3.2078]
[1680546502586,1.0,1812.2,1811.6,3.2078]
[1680546502783,3.2078,1812.1,1811.6,3.2078]
[1680546503183,1.0,1812.0,1811.6,3.2078]
[1680546504084,3.2078,1812.1,1811.6,3.2078]
[1680546504291,3.2078,1812.3,1811.8,3.2078]
[1680546504482,11.37659158,1812.7,1812.2,4.413]
[1680546504483,0.5738808,1812.7,1812.2,4.413]
[1680546504688,0.5738808,1812.8,1812.2,4.413]
[1680546505090,2.4171091,1812.8,1812.2,4.413]
[1680546505386,1.4171091,1812.8,1812.2,4.413]
[1680546505892,0.5738808,1812.8,1812.2,7.6208]
[1680546506086,3.7816808,1812.7,1812.2,4.413]
[1680546506493,3.7816808,1812.7,1812.2,7.6208]
[1680546506892,1.0,1812.6,1812.2,7.6208]
[1680546507095,1.0,1812.6,1812.0,3.2078]
[1680546507096,1.5738808,1812.6,1812.0,3.2078]
[1680546507396,1.5738808,1812.6,1811.8,4.372]
[1680546507397,3.7816808,1812.5,1811.8,4.372]
[1680546507586,1.0,1812.4,1811.9,3.2078]
[1680546507791,1.0,1812.4,1811.8,4.372]
[1680546508193,1.0,1812.4,1811.9,3.2078]
[1680546508490,3.2078,1812.3,1811.8,4.372]
[1680546508688,1.0,1812.2,1811.8,4.372]
[1680546509090,1.0,1812.2,1811.7,3.2078]
[1680546510192,3.2078,1812.3,1811.7,3.2078]
[1680546511100,1.0,1812.2,1811.7,3.2078]
[1680546512193,3.2078,1812.1,1811.7,3.2078]
[1680546512395,1.0,1812.0,1811.6,4.372]
[1680546512697,3.2078,1811.9,1811.3,7.5908]
[1680546512896,1.0,1812.0,1811.3,3.2078]
[1680546512897,3.2078,1811.7,1811.3,3.2078]
[1680546513505,3.2078,1811.9,1811.3,3.2078]
[1680546513797,1.5738808,1812.0,1811.2,4.413]
[1680546513798,4.2078,1812.0,1811.5,3.2078]
[1680546513993,3.2078,1812.0,1811.5,3.2078]
[1680546514396,6.5244283,1812.2,1811.7,3.2078]
[1680546514397,4.6812,1812.2,1811.7,3.2078]
[1680546514595,4.6812,1812.2,1811.6,4.413]
[1680546514798,4.2078,1812.1,1811.5,3.2078]
[1680546514994,3.2078,1811.9,1811.0,8.18618779]
[1680546515199,3.2078,1811.7,1811.1,13.24848756]
[1680546515703,3.2078,1811.7,1811.2,4.413]
[1680546515903,1.4171091,1812.1,1811.6,3.2078]
[1680546516099,3.2078,1812.3,1811.9,7.6208]
[1680546516100,0.5738808,1812.3,1811.9,7.6208]
[1680546516301,0.5738808,1812.5,1812.1,7.6208]
[1680546516599,0.5738808,1812.7,1812.4,3.2078]
[1680546516800,0.5738808,1812.7,1812.2,3.2078]
[1680546516997,1.4171091,1812.8,1812.4,3.2078]
[1680546517191,0.5738808,1812.8,1812.4,3.2078]
[1680546517905,0.5738808,1812.8,1812.3,7.5798]
[1680546518105,0.5738808,1812.8,1812.5,3.2078]
[1680546519599,0.5738808,1812.8,1812.3,3.2078]
[1680546520203,5.5853808,1812.9,1812.5,3.2078]
[1680546520807,5.5853808,1812.9,1812.7,3.2078]
[1680546521012,0.5738808,1812.9,1812.5,3.2078]
[1680546522113,0.5738808,1813.0,1812.4,4.2078]
[1680546522311,0.5738808,1813.0,1812.9,3.2078]
[1680546522609,1.4171091,1813.0,1812.4,3.2078]
[1680546522806,0.5738808,1813.0,1812.8,3.2078]
[1680546523208,0.5738808,1813.0,1812.7,3.2078]
[1680546523410,0.5738808,1813.0,1812.7,7.6208]
[1680546523811,1.4171091,1813.1,1812.7,7.6208]
[1680546524220,0.5738808,1813.1,1812.7,7.6208]
[1680546524415,0.5738808,1813.2,1813.0,3.2078]
[1680546524715,1.4171091,1813.4,1813.0,3.2078]
[1680546524914,0.5738808,1813.3,1813.0,3.2078]
[1680546525309,0.5738808,1813.3,1812.8,8.6208]
[1680546526115,0.5738808,1813.4,1813.0,3.2078]
[1680546526519,0.5738808,1813.4,1813.1,1.0]
[1680546527213,0.5738808,1813.4,1813.0,7.6208]
[1680546527414,0.5738808,1813.4,1812.9,3.2078]
[1680546528518,0.5738808,1813.4,1812.8,7.6208]
[1680546528721,1.4171091,1813.4,1812.8,7.6208]
[1680546528923,2.4171091,1813.4,1812.8,7.6208]
[1680546529319,0.5738808,1813.3,1812.8,7.6208]
[1680546529518,0.5738808,1813.4,1813.0,4.413]
[1680546529725,1.96757193,1813.5,1813.3,3.2078]
[1680546529726,0.5738808,1813.5,1813.3,3.2078]
[1680546529923,0.5738808,1813.4,1813.2,4.413]
[1680546530420,0.5738808,1813.5,1813.0,4.372]
[1680546530617,0.5738808,1813.5,1813.2,3.2078]
[1680546531021,0.5738808,1813.6,1813.2,7.6208]
[1680546531220,1.4171091,1813.6,1813.2,7.6208]
[1680546532811,0.5738808,1813.5,1813.2,7.6208]
[1680546533121,0.5738808,1813.6,1813.2,7.6208]
[1680546533525,0.5738808,1813.6,1813.4,3.2078]
[1680546534120,0.5738808,1813.7,1813.4,3.2078]
[1680546534327,2.36727746,1813.8,1813.4,3.2078]
[1680546534535,0.5738808,1813.7,1813.4,3.2078]
[1680546535219,1.5738808,1813.7,1813.4,3.2078]
[1680546535416,2.4171091,1813.7,1813.4,3.2078]
[1680546535728,0.5738808,1813.6,1813.4,3.2078]
[1680546536020,0.5738808,1813.6,1813.2,7.6208]
[1680546536221,0.5738808,1813.6,1813.2,3.2078]
[1680546536526,0.5738808,1813.6,1813.0,4.2078]
[1680546536721,0.5738808,1813.6,1813.2,3.2078]
[1680546537222,0.5738808,1813.6,1813.1,2.205]
[1680546537523,0.5738808,1813.6,1813.2,3.2078]
[1680546537725,0.5738808,1813.6,1813.1,2.205]
[1680546538118,0.5738808,1813.6,1813.2,3.2078]
[1680546538320,0.5738808,1813.6,1813.1,2.205]
[1680546538815,5.9786808,1813.5,1812.9,2.205]
[1680546539126,1.0,1813.4,1812.9,5.4128]
[1680546539322,5.9786808,1813.5,1812.9,5.4128]
[1680546539528,5.9786808,1813.5,1812.9,2.205]
[1680546539529,0.5738808,1813.4,1812.9,2.205]
[1680546539729,1.5738808,1813.4,1812.9,5.4128]
[1680546540223,3.7788808,1813.4,1812.8,2.205]
[1680546540525,3.2078,1813.3,1812.8,2.205]
[1680546540831,1.0,1813.2,1812.8,2.205]
[1680546541125,3.2078,1813.1,1812.8,2.205]
[1680546541323,3.2078,1813.1,1812.6,2.202]
[1680546541819,3.7816808,1813.1,1812.6,2.202]
[1680546542016,5.9866808,1813.1,1812.5,5.4128]
[1680546542625,3.7816808,1813.1,1812.6,2.183]
[1680546542822,4.6249091,1813.1,1812.6,2.183]
[1680546543434,3.2078,1812.9,1812.6,2.183]
[1680546544424,3.7816808,1812.9,1812.6,2.183]
[1680546544729,3.2078,1812.7,1812.6,2.183]
[1680546545130,3.2078,1812.7,1812.4,2.193]
[1680546545731,0.5738808,1812.8,1812.4,2.193]
[1680546546639,0.5738808,1813.1,1812.7,5.4128]
[1680546546935,4.8534,1813.3,1813.0,5.4128]
[1680546547137,0.5738808,1813.4,1813.2,2.205]
[1680546547339,0.5738808,1813.5,1813.2,5.4128]
[1680546547539,9.26767003,1813.8,1813.4,5.3908]
[1680546547540,1.52404916,1813.8,1813.4,5.3908]
[1680546547737,0.95016836,1813.8,1813.7,5.4128]
[1680546549335,0.00104916,1814.2,1813.7,10.9448]
[1680546549540,1.40700167,1814.6,1813.7,10.9448]
[1680546549541,0.34302175,1814.5,1814.1,2.205]
[1680546549837,2.197,1814.3,1813.7,5.4008]
[1680546550145,2.197,1814.3,1813.7,2.193]
[1680546550334,3.2078,1814.2,1813.9,2.205]
[1680546550636,1.0,1814.1,1813.8,2.183]
[1680546551039,3.2078,1814.2,1813.8,2.183]
[1680546551634,1.0,1814.1,1813.8,2.183]
[1680546551937,3.2078,1814.2,1813.8,2.183]
[1680546552127,4.7363453,1814.6,1814.0,2.205]
[1680546552331,3.205,1814.6,1814.2,3.2078]
[1680546552635,3.205,1814.6,1814.0,5.4128]
[1680546552829,1.0,1814.5,1814.0,5.4128]
[1680546553029,2.205,1814.6,1814.0,5.4128]
[1680546553438,10.5483,1814.7,1814.2,2.205]
[1680546554233,3.2078,1814.5,1814.2,2.205]
[1680546555035,2.202,1814.5,1814.0,5.4128]
[1680546555242,3.2078,1814.4,1814.0,2.205]
[1680546555932,5.0,1814.0,1812.8,3.78651702]
[1680546556135,3.2078,1813.3,1812.8,3.2078]
[1680546556328,3.2078,1813.4,1812.8,3.2078]
[1680546556532,3.2078,1813.4,1813.2,2.193]
[1680546557231,1.12434363,1814.0,1813.3,5.4128]
[1680546557441,4.61480167,1814.5,1813.9,2.205]
[1680546557739,3.2078,1814.5,1814.2,2.205]
[1680546557942,1.12434363,1814.7,1814.0,2.205]
[1680546557943,3.2078,1814.3,1814.0,2.205]
[1680546558241,5.4098,1814.3,1813.7,2.202]
[1680546558447,1.67864334,1814.6,1814.2,2.202]
[1680546558735,3.2078,1814.6,1814.2,2.202]
[1680546558935,6.54769731,1814.8,1814.2,2.202]
[1680546559240,3.2078,1814.6,1814.2,2.202]
[1680546560632,4.34269731,1814.8,1814.5,2.205]
[1680546560833,3.21835368,1814.8,1814.5,2.205]
[1680546561437,3.21835368,1814.8,1814.4,3.205]
[1680546562134,3.21835368,1814.8,1814.4,2.205]
[1680546562340,3.21835368,1814.8,1814.3,2.183]
[1680546563928,0.01055368,1814.8,1814.7,2.205]
[1680546564241,3.21835368,1814.8,1814.7,2.205]
[1680546564539,6.54769731,1814.8,1813.9,2.205]
[1680546564835,6.5246248,1814.7,1813.9,5.532]
[1680546565027,3.2078,1814.0,1813.6,0.53752705]
[1680546565231,3.2078,1813.8,1813.3,3.2078]
[1680546565647,3.2078,1813.8,1813.3,2.183]
[1680546566641,3.2078,1813.6,1813.3,2.183]
[1680546567136,3.2078,1813.9,1813.5,2.205]
[1680546567333,3.2078,1813.9,1813.6,2.193]
[1680546567533,3.2078,1813.9,1813.4,2.183]
[1680546567735,3.2078,1813.7,1813.2,2.205]
[1680546568143,2.205,1813.4,1812.6,9.05641979]
[1680546568335,2.205,1813.4,1812.8,1.0]
[1680546568535,2.205,1813.4,1812.9,13.23522396]
[1680546568737,0.12238838,1813.3,1812.9,13.23522396]
[1680546568940,3.33018838,1813.3,1812.9,13.23522396]
[1680546569138,3.2078,1813.3,1813.0,2.205]
[1680546569440,3.2078,1813.3,1813.0,3.205]
[1680546569741,5.4128,1813.8,1813.2,2.193]
[1680546571242,3.2078,1813.6,1813.2,2.193]
[1680546571745,3.2078,1813.6,1813.1,2.205]
[1680546572143,2.205,1813.5,1812.9,2.202]
[1680546572346,3.2078,1813.6,1813.1,2.205]
[1680546574145,3.2078,1813.4,1813.1,2.205]
[1680546574855,3.2078,1813.4,1812.9,2.205]
[1680546575153,3.2078,1813.0,1812.9,2.205]
[1680546576757,2.197,1813.5,1812.9,2.205]
[1680546576758,3.2078,1813.2,1812.9,2.205]
[1680546579552,3.2078,1813.0,1812.9,2.205]
[1680546579953,3.2078,1813.0,1812.7,2.205]
[1680546580160,3.2078,1812.8,1812.5,3.183]
[1680546580348,3.2078,1812.6,1812.4,1.0]
[1680546580553,3.2078,1812.6,1812.3,2.205]
[1680546580747,3.2078,1812.6,1812.4,13.23961387]
[1680546580954,3.2078,1812.7,1812.5,2.183]
[1680546581657,0.14651603,1812.6,1812.3,2.205]
[1680546581860,3.2078,1812.7,1812.4,14.23969126]
[1680546582062,0.14650471,1812.6,1812.4,1.0]
[1680546582357,3.2078,1812.7,1812.3,2.205]
[1680546582556,0.33286438,1812.6,1812.3,2.205]
[1680546583060,3.2078,1812.7,1812.3,2.205]
[1680546583257,3.2078,1812.5,1812.3,2.205]
[1680546583558,3.2078,1812.5,1812.2,2.205]
[1680546583761,3.2078,1812.5,1812.3,13.24025807]
[1680546583956,0.3281191,1812.4,1812.3,13.24025807]
[1680546584155,0.3281191,1812.4,1812.3,15.44525807]
[1680546584457,3.2078,1812.9,1812.3,18.65305807]
[1680546584659,3.2078,1812.9,1812.4,1.0]
[1680546584866,3.2078,1812.9,1812.5,2.183]
[1680546585458,3.2078,1812.9,1812.6,1.0]
[1680546585755,3.2078,1812.9,1812.5,2.183]
[1680546585956,3.2078,1812.8,1812.7,2.205]
[1680546586270,7.9328,1813.4,1812.7,5.4128]
[1680546586570,7.9328,1813.4,1813.2,2.205]
[1680546586864,3.2078,1813.4,1813.2,2.205]
[1680546588362,3.2078,1813.4,1813.0,2.202]
[1680546588661,3.2078,1813.2,1813.0,2.202]
[1680546590566,3.2078,1813.2,1812.8,2.205]
[1680546591158,3.2078,1813.0,1812.8,2.205]
[1680546591366,3.2078,1813.0,1812.6,2.205]
[1680546591776,3.2078,1813.0,1812.5,3.205]
[1680546591967,0.10254625,1812.9,1812.6,13.23822113]
[1680546592263,0.10254625,1812.9,1812.7,2.202]
[1680546592469,3.31034625,1812.9,1812.7,2.202]
[1680546592869,0.10254625,1812.9,1812.7,2.202]
[1680546593166,3.2078,1813.1,1812.7,2.202]
[1680546594566,3.2078,1813.1,1812.8,1.0]
[1680546595167,3.2078,1813.1,1812.7,3.202]
[1680546595369,3.2078,1813.1,1812.7,2.202]
[1680546595770,5.3968,1813.1,1812.6,2.205]
[1680546596168,5.4128,1812.9,1812.4,2.202]
[1680546596470,5.4128,1812.9,1812.5,13.23842581]
[1680546597766,3.2078,1812.7,1812.5,13.23842581]
[1680546598264,3.2078,1812.7,1812.4,2.202]
[1680546598471,3.2078,1812.7,1812.5,13.23930858]
[1680546599064,3.2078,1812.7,1812.4,2.202]
[1680546599574,3.2078,1812.7,1812.5,13.23947064]
[1680546599770,3.2078,1812.7,1812.4,2.202]
[1680546599969,0.10237323,1812.6,1812.4,2.202]
[1680546600170,3.2078,1812.7,1812.4,2.202]
[1680546600576,3.2078,1812.5,1812.2,3.205]
[1680546600769,3.2078,1812.5,1812.3,13.23996373]
[1680546601476,3.2078,1812.5,1812.4,2.205]
[1680546601675,2.205,1813.2,1812.4,24.18476373]
[1680546601974,5.1229,1813.3,1812.8,5.4128]
[1680546602168,3.2078,1813.4,1812.9,2.193]
[1680546602566,3.2078,1813.4,1813.1,2.202]
[1680546603078,3.2078,1813.6,1813.2,1.0]
[1680546603278,3.2078,1813.6,1813.1,2.202]
[1680546604172,2.197,1813.3,1812.7,2.205]
[1680546604378,2.197,1813.3,1812.8,13.23617574]
[1680546604668,1.0,1813.7,1812.6,2.205]
[1680546604669,2.205,1813.1,1812.6,2.205]
[1680546605077,1.0,1813.4,1812.5,3.207]
[1680546605268,3.2078,1813.9,1813.3,2.205]
[1680546605580,3.2078,1813.6,1813.3,2.205]
[1680546606272,2.197,1813.8,1813.5,3.2078]
[1680546607075,2.197,1813.8,1813.4,4.2078]
[1680546607374,3.2078,1813.9,1813.5,2.205]
[1680546607773,2.202,1814.0,1813.5,2.205]
[1680546607968,3.2078,1813.9,1813.5,2.205]
[1680546609367,3.2078,1813.7,1813.3,2.202]
[1680546609773,3.2078,1813.7,1813.4,13.23385288]
[1680546609975,3.2078,1813.7,1813.5,2.205]
[1680546611475,3.2078,1813.7,1813.3,2.205]
[1680546611673,3.2078,1813.5,1813.4,13.23422618]
[1680546612078,3.2078,1813.5,1813.2,2.205]
[1680546612280,3.2078,1813.5,1813.3,13.23475983]
[1680546613184,3.2078,1813.5,1813.2,2.205]
[1680546613382,3.2078,1813.3,1813.2,2.205]
[1680546613574,3.2078,1813.3,1813.2,15.44045257]
[1680546613881,3.2078,1813.4,1813.2,15.44045257]
[1680546614082,3.2078,1813.4,1813.0,2.202]
[1680546614281,2.202,1813.1,1812.6,1.44769954]
[1680546614479,3.2078,1813.0,1812.7,13.23720978]
[1680546614679,3.25245148,1813.0,1812.8,13.23720978]
[1680546614880,3.25245148,1813.0,1812.9,13.23720978]
[1680546615071,3.25245148,1813.0,1812.6,13.23720978]
[1680546615280,3.25245148,1813.0,1812.7,13.23720978]
[1680546615482,3.25245148,1813.0,1812.8,13.23720978]
[1680546615779,1.0,1812.8,1812.3,2.78371702]
[1680546615983,3.2078,1812.8,1812.4,13.23941039]
[1680546616784,3.2078,1812.8,1812.5,1.0]
[1680546616981,3.2078,1812.8,1812.6,13.23941039]
[1680546618187,3.2078,1812.8,1812.7,13.23941039]
[1680546618983,5.4128,1812.8,1812.5,13.23941039]
[1680546619289,5.3968,1812.6,1812.2,0.57871702]
[1680546619489,5.3968,1812.6,1812.3,13.2401742]
[1680546619682,5.3968,1812.6,1812.4,13.2401742]
[1680546619876,3.2078,1812.6,1812.5,13.2401742]
[1680546620081,3.2078,1812.6,1812.3,13.2401742]
[1680546620283,3.2078,1812.6,1812.4,13.2401742]
[1680546620486,3.2078,1812.6,1812.5,13.2401742]
[1680546620786,0.04465148,1813.0,1812.6,1.0]
[1680546620992,3.2078,1812.9,1812.7,13.2401742]
[1680546621285,3.2078,1812.9,1812.5,2.205]
[1680546621480,5.4128,1812.9,1812.6,13.23943628]
[1680546621678,3.2078,1812.7,1812.4,2.193]
[1680546621877,3.2078,1812.7,1812.5,13.23988139]
[1680546623085,0.04465148,1813.0,1812.7,5.532]
[1680546623278,0.04465148,1813.0,1812.9,2.202]
[1680546623487,0.86317519,1813.5,1812.9,15.44188139]
[1680546623693,0.86317519,1813.5,1813.1,2.193]
[1680546624189,0.86317519,1813.5,1813.1,5.4008]
[1680546624386,0.86317519,1813.5,1813.1,2.193]
[1680546625492,4.07097519,1813.5,1813.1,5.4008]
[1680546625883,0.86317519,1813.5,1813.1,5.4008]
[1680546626083,1.86317519,1813.6,1813.3,3.2078]
[1680546626281,0.86317519,1813.6,1813.3,3.2078]
[1680546626490,3.06517519,1813.7,1813.3,3.2078]
[1680546627591,0.86317519,1813.7,1813.5,3.2078]
[1680546628400,0.86317519,1813.7,1813.3,2.205]
[1680546628582,1.86317519,1813.7,1813.3,2.205]
[1680546629284,1.86317519,1813.7,1813.4,3.2078]
[1680546629496,0.86317519,1813.7,1813.3,2.205]
[1680546629892,0.86317519,1813.7,1813.4,3.2078]
[1680546630294,0.86317519,1813.8,1813.4,3.2078]
[1680546630597,0.86317519,1813.8,1813.6,3.2078]
[1680546630792,0.86317519,1813.8,1813.6,5.4128]
[1680546630991,1.12434363,1813.9,1813.6,2.205]
[1680546630992,0.86317519,1813.9,1813.6,2.205]
[1680546631188,0.86317519,1814.0,1813.6,5.4128]
[1680546631494,0.86317519,1813.9,1813.6,5.4128]
[1680546631889,0.86317519,1813.9,1813.6,2.205]
[1680546632092,0.86317519,1813.9,1813.5,2.205]
[1680546632591,0.86317519,1813.9,1813.6,3.2078]
[1680546632992,0.86317519,1813.9,1813.5,2.205]
[1680546633395,0.86317519,1813.8,1813.4,5.4128]
[1680546633595,1.0,1813.7,1813.4,5.4128]
[1680546633999,1.0,1813.7,1813.4,2.205]
[1680546634495,4.2078,1813.7,1813.4,2.205]
[1680546634695,5.07097519,1813.7,1813.4,2.205]
[1680546635198,3.2078,1813.5,1813.4,2.205]
[1680546635591,1.86317519,1813.7,1813.4,2.205]
[1680546635909,3.05017519,1813.5,1812.9,2.205]
[1680546636199,3.25527214,1813.4,1812.9,2.205]
[1680546636598,1.0,1813.3,1812.9,2.205]
[1680546636801,3.2078,1813.2,1812.9,2.205]
[1680546637297,3.2078,1813.2,1812.7,2.205]
[1680546637298,5.3968,1813.2,1812.7,2.205]
[1680546637496,1.0,1813.1,1812.8,13.23748246]
[1680546637888,5.3968,1813.2,1812.8,13.23748246]
[1680546640894,5.3968,1813.2,1812.9,2.183]
[1680546640895,3.2078,1813.2,1812.9,2.183]
[1680546641097,0.04747214,1813.4,1813.1,2.205]
[1680546641290,5.50997519,1813.7,1813.3,2.183]
[1680546641496,0.86317519,1813.7,1813.3,2.183]
[1680546642392,3.2078,1813.6,1813.3,2.183]
[1680546642792,4.07097519,1813.6,1813.3,2.183]
[1680546642999,1.86317519,1813.5,1813.2,2.205]
[1680546643706,0.86317519,1813.5,1813.2,2.205]
[1680546644403,1.86317519,1813.5,1813.2,2.205]
[1680546644804,0.86317519,1813.5,1813.2,2.205]
[1680546645009,1.86317519,1813.5,1813.2,2.205]
[1680546645404,0.86317519,1813.5,1813.2,2.205]
[1680546645905,1.86317519,1813.5,1813.2,2.205]
[1680546647610,3.2078,1813.4,1813.0,2.205]
[1680546647804,1.0,1813.3,1813.0,2.205]
[1680546648007,3.2078,1813.2,1813.0,2.205]
[1680546648507,0.05349745,1813.1,1813.0,2.205]
[1680546648909,0.05349745,1813.1,1812.8,2.205]
[1680546649105,0.05349745,1813.1,1812.9,13.23703938]
[1680546649306,0.05349745,1813.1,1813.0,2.205]
[1680546649511,0.05349745,1813.1,1813.0,15.44203938]
[1680546649711,1.86317519,1813.4,1813.0,15.44203938]
[1680546649907,3.2078,1813.3,1813.0,2.205]
[1680546651117,0.0522649,1813.2,1813.0,2.205]
[1680546651921,0.0522649,1813.2,1812.9,2.205]
[1680546652118,0.0522649,1813.2,1813.0,13.23676518]
[1680546653412,0.0522649,1813.2,1813.1,3.193]
[1680546653622,1.41073879,1813.6,1813.1,16.42976518]
[1680546653817,0.5475636,1813.6,1813.2,16.44456518]
[1680546654125,0.86317519,1813.5,1813.1,2.193]
[1680546654322,0.86317519,1813.6,1813.2,13.23546665]
[1680546654522,0.86317519,1813.5,1813.1,2.193]
[1680546654916,1.86317519,1813.5,1813.1,2.193]
[1680546655111,0.86317519,1813.4,1813.1,2.193]
[1680546655420,0.86317519,1813.4,1812.9,5.4128]
[1680546655622,0.86317519,1813.4,1813.0,13.23594521]
[1680546655917,0.86317519,1813.4,1813.1,5.3908]
[1680546656124,3.06517519,1813.6,1813.2,13.23594521]
[1680546656324,3.06517519,1813.6,1813.3,3.2078]
[1680546656620,0.86317519,1813.5,1813.1,5.3908]
[1680546656817,0.86317519,1813.5,1813.2,13.23529834]
[1680546657218,2.205,1813.4,1813.2,13.23529834]
[1680546657525,0.86317519,1813.3,1812.8,3.2078]
[1680546657724,5.13866527,1813.3,1812.9,13.23694692]
[1680546657922,4.13866527,1813.3,1812.9,13.23694692]
[1680546658227,0.86317519,1813.2,1812.9,13.23694692]
[1680546658726,0.06769008,1813.3,1813.0,5.4128]
[1680546658923,0.86317519,1813.5,1813.1,13.23694692]
[1680546659614,3.06017519,1813.4,1813.1,13.23694692]
[1680546659815,3.06017519,1813.4,1813.2,13.23694692]
[1680546660116,4.06017519,1813.4,1812.9,2.183]
[1680546660324,4.06017519,1813.4,1813.0,13.23623948]
[1680546660526,0.06723714,1813.3,1813.0,13.23623948]
[1680546661027,3.2078,1813.3,1813.0,13.23623948]
[1680546661321,5.07097519,1813.3,1813.0,13.23623948]
[1680546661522,6.27297519,1813.3,1813.0,13.23623948]
[1680546661820,6.27297519,1813.3,1812.7,5.4128]
[1680546662028,3.2078,1813.1,1812.8,13.2373075]
[1680546662613,4.07097519,1813.1,1812.9,13.2373075]
[1680546662915,4.07097519,1813.1,1812.5,5.96951702]
[1680546662916,3.05217519,1813.0,1812.5,5.96951702]
[1680546663127,4.2078,1812.9,1812.6,13.23882172]
[1680546663324,2.187,1812.8,1812.6,13.23882172]
[1680546664224,3.187,1812.8,1812.6,13.23882172]
[1680546664723,3.187,1812.8,1812.7,13.23882172]
[1680546664931,4.05217519,1812.8,1812.2,0.57871702]
[1680546665223,5.4048,1812.6,1812.3,13.24057077]
[1680546665526,1.0,1812.5,1812.4,13.24057077]
[1680546665722,1.0,1812.5,1812.2,13.24057077]
[1680546665924,3.2078,1812.4,1812.3,13.24057077]
[1680546666223,3.76208222,1812.4,1812.3,13.24057077]
[1680546666425,3.76208222,1812.4,1812.1,13.24057077]
[1680546666624,3.76208222,1812.4,1812.1,13.81928779]
[1680546666816,3.76208222,1812.4,1812.1,13.24057077]
[1680546667022,0.55428222,1812.4,1812.2,13.24057077]
[1680546667326,0.55428222,1812.4,1811.8,0.57871702]
[1680546667327,6.4128,1812.3,1811.8,0.57871702]
[1680546667522,3.2078,1812.0,1811.9,13.24346775]
[1680546667719,2.205,1811.9,1811.6,1.44769954]
[1680546667919,2.205,1811.9,1811.7,13.24425175]
[1680546668222,3.2078,1811.8,1811.7,13.24425175]
[1680546668922,3.2078,1811.8,1811.5,13.24425175]
[1680546669623,1.0,1812.1,1811.5,13.24425175]
[1680546669624,5.4128,1811.6,1811.5,13.24425175]
[1680546669937,6.4128,1811.6,1811.1,0.57871702]
[1680546670121,3.2078,1811.4,1811.2,13.24799897]
[1680546670427,3.2078,1811.4,1811.3,13.24799897]
[1680546670631,3.2078,1811.4,1810.7,3.78651702]
[1680546670820,3.2078,1811.2,1810.8,13.24869455]
[1680546671019,3.2078,1811.2,1810.8,15.45069455]
[1680546671221,5.4048,1811.4,1810.9,14.24869455]
[1680546671525,1.11988042,1811.1,1811.0,13.24869455]
[1680546671723,5.4048,1811.4,1811.0,13.24869455]
[1680546672122,3.2078,1811.2,1811.1,13.24869455]
[1680546672631,3.2078,1811.2,1810.9,2.205]
[1680546673128,5.4128,1811.2,1810.7,3.2078]
[1680546673426,5.4128,1811.2,1810.8,13.2489254]
[1680546674120,3.2078,1811.2,1810.8,15.4319254]
[1680546674423,5.3948,1811.3,1810.9,13.2489254]
[1680546674625,5.3948,1811.3,1810.8,2.183]
[1680546675123,2.187,1811.3,1810.8,2.183]
[1680546675326,0.55052026,1811.5,1811.2,2.202]
[1680546675633,3.2078,1811.7,1811.4,2.205]
[1680546678731,5.3968,1811.7,1811.2,2.205]
[1680546679825,5.3968,1811.7,1811.3,3.2078]
[1680546680228,2.189,1811.7,1811.3,3.2078]
[1680546681131,0.81932775,1811.6,1811.3,3.2078]
[1680546681331,2.189,1811.7,1811.3,3.2078]
[1680546682129,6.3968,1811.8,1811.3,3.2078]
[1680546682433,5.3968,1811.8,1811.3,3.2078]
[1680546683334,6.3968,1811.8,1811.3,3.2078]
[1680546684034,3.2078,1811.6,1811.3,3.2078]
[1680546685234,0.55461385,1812.0,1811.6,5.532]
[1680546685426,5.48309483,1812.6,1811.9,5.4128]
[1680546685627,0.23182831,1812.5,1812.2,2.205]
[1680546685840,0.23182831,1812.5,1812.4,2.202]
[1680546686138,3.2078,1812.9,1812.4,2.202]
[1680546686139,10.3173,1813.1,1812.4,7.737]
[1680546686434,10.3173,1813.1,1812.6,5.4128]
[1680546686627,5.3948,1813.1,1812.6,5.4128]
[1680546689438,2.187,1813.1,1812.6,5.4128]
[1680546689636,2.74978166,1813.3,1812.8,3.2078]
[1680546691242,2.74978166,1813.3,1813.0,3.2078]